[Event "*** Titled Tuesday Blitz"]
[Site "Chess.com"]
[Date "2018.04.03"]
[Round "10"]
[White "julinha97"]
[Black "comedy_of_errors"]
[Result "1/2-1/2"]
[WhiteElo "2258"]
[BlackElo "2426"]
[TimeControl "180+2"]
[EndTime "15:18:05 PDT"]
[Termination "Game drawn by agreement"]

1. d4 {[%clk 0:03:01.9]} 1... Nf6 {[%clk 0:02:58.4]} 2. c4 {[%clk 0:03:02.3]}
2... g6 {[%clk 0:02:59.1]} 3. Nc3 {[%clk 0:03:02.5]} 3... Bg7 {[%clk 0:03:00.1]}
4. Nf3 {[%clk 0:03:02.1]} 4... d6 {[%clk 0:03:00.6]} 5. Bg5 {[%clk 0:03:02.2]}
5... O-O {[%clk 0:02:55.4]} 6. e3 {[%clk 0:03:01.8]} 6... Bf5 {[%clk 0:02:52.5]}
7. Be2 {[%clk 0:02:58.5]} 7... Nbd7 {[%clk 0:02:49.5]} 8. O-O {[%clk 0:02:55.9]}
8... c5 {[%clk 0:02:49.9]} 9. h3 {[%clk 0:02:51]} 9... h6 {[%clk 0:02:50.6]} 10.
Bf4 {[%clk 0:02:46.6]} 10... Qb6 {[%clk 0:02:46.4]} 11. g4 {[%clk 0:02:27.2]}
11... Be4 {[%clk 0:02:38.3]} 12. Nd2 {[%clk 0:02:26.4]} 12... g5 {[%clk
0:02:38.2]} 13. Ndxe4 {[%clk 0:02:20.2]} 13... Nxe4 {[%clk 0:02:36.4]} 14. Nd5
{[%clk 0:02:12]} 14... Qd8 {[%clk 0:02:29.7]} 15. Bh2 {[%clk 0:02:11.2]} 15...
Nb6 {[%clk 0:02:23.2]} 16. Bf3 {[%clk 0:02:01.6]} 16... Nxd5 {[%clk 0:02:02.1]}
17. Bxe4 {[%clk 0:02:00.6]} 17... Nf6 {[%clk 0:02:02.9]} 18. Bg2 {[%clk
0:01:59.8]} 18... cxd4 {[%clk 0:01:58.5]} 19. exd4 {[%clk 0:02:00.4]} 19... Rc8
{[%clk 0:01:53]} 20. Rc1 {[%clk 0:01:59.7]} 20... b6 {[%clk 0:01:53.3]} 21. f4
{[%clk 0:01:58.1]} 21... Nh7 {[%clk 0:01:38.2]} 22. Be4 {[%clk 0:01:54.8]} 22...
e6 {[%clk 0:01:32.6]} 23. Bb1 {[%clk 0:01:44.2]} 23... Re8 {[%clk 0:01:11.7]}
24. Qd3 {[%clk 0:01:42.2]} 24... Nf8 {[%clk 0:01:12]} 25. fxg5 {[%clk
0:01:40.4]} 25... hxg5 {[%clk 0:01:13.9]} 26. Rf2 {[%clk 0:01:23.5]} 26... d5
{[%clk 0:01:15]} 27. b3 {[%clk 0:01:17.5]} 27... dxc4 {[%clk 0:01:15.7]} 28.
bxc4 {[%clk 0:00:57.5]} 28... Qxd4 {[%clk 0:01:15.5]} 29. Qf3 {[%clk 0:00:52.6]}
29... Re7 {[%clk 0:01:13.5]} 30. Rd1 {[%clk 0:00:39.8]} 30... Qxc4 {[%clk
0:01:14.3]} 31. Bd6 {[%clk 0:00:40.2]} 31... Rd7 {[%clk 0:01:08.8]} 32. Bd3
{[%clk 0:00:37.1]} 32... Qc6 {[%clk 0:00:48.4]} 33. Be4 {[%clk 0:00:35.9]} 33...
Qa4 {[%clk 0:00:40]} 34. Rfd2 {[%clk 0:00:18.8]} 34... Rcd8 {[%clk 0:00:38]} 35.
Bc6 {[%clk 0:00:17.2]} 35... Rxd6 {[%clk 0:00:25.6]} 36. Rxd6 {[%clk 0:00:18.4]}
36... Bd4+ {[%clk 0:00:19]} 37. R1xd4 {[%clk 0:00:17.8]} 37... Qxd4+ {[%clk
0:00:17.4]} 38. Rxd4 {[%clk 0:00:18.3]} 38... Rxd4 {[%clk 0:00:19.3]} 39. Qe3
{[%clk 0:00:17.9]} 39... Rd1+ {[%clk 0:00:20.4]} 40. Kf2 {[%clk 0:00:18.7]}
40... f6 {[%clk 0:00:22.1]} 41. Be4 {[%clk 0:00:16.9]} 41... Kf7 {[%clk
0:00:21.3]} 42. Qb3 {[%clk 0:00:16.8]} 42... Rd7 {[%clk 0:00:21.8]} 43. Ke3
{[%clk 0:00:18]} 43... Rc7 {[%clk 0:00:22.1]} 44. Bf5 {[%clk 0:00:18.3]} 44...
Ke7 {[%clk 0:00:22.5]} 45. Bd3 {[%clk 0:00:18.2]} 45... Nd7 {[%clk 0:00:23.9]}
46. Bc4 {[%clk 0:00:18.5]} 46... Nc5 {[%clk 0:00:25]} 47. Qb2 {[%clk 0:00:17.4]}
47... Rd7 {[%clk 0:00:25.5]} 48. Be2 {[%clk 0:00:18.3]} 48... Rd5 {[%clk
0:00:26.1]} 49. Qc2 {[%clk 0:00:19.1]} 49... Re5+ {[%clk 0:00:27]} 50. Kf2
{[%clk 0:00:20.7]} 50... Ne4+ {[%clk 0:00:27.6]} 51. Kg2 {[%clk 0:00:15.9]}
51... f5 {[%clk 0:00:27.8]} 52. gxf5 {[%clk 0:00:15.9]} 52... exf5 {[%clk
0:00:29.7]} 53. Bf3 {[%clk 0:00:17.1]} 53... Kf6 {[%clk 0:00:31.6]} 54. Qc6+
{[%clk 0:00:17.3]} 54... Re6 {[%clk 0:00:31.8]} 55. Qd7 {[%clk 0:00:15.9]} 55...
Nc5 {[%clk 0:00:32.4]} 56. Qd8+ {[%clk 0:00:17]} 56... Kg6 {[%clk 0:00:32.2]}
57. Qg8+ {[%clk 0:00:16.9]} 57... Kf6 {[%clk 0:00:33]} 58. Bh5 {[%clk
0:00:17.5]} 58... Ne4 {[%clk 0:00:24]} 59. Qf7+ {[%clk 0:00:15.6]} 59... Ke5
{[%clk 0:00:25]} 60. Bg6 {[%clk 0:00:15.8]} 60... Rf6 {[%clk 0:00:24.3]} 61.
Qc7+ {[%clk 0:00:16.3]} 61... Kd4 {[%clk 0:00:24.6]} 62. Qd8+ {[%clk 0:00:17.2]}
62... Ke5 {[%clk 0:00:25.3]} 63. Qe7+ {[%clk 0:00:17.6]} 63... Kf4 {[%clk
0:00:24.4]} 64. Qc7+ {[%clk 0:00:18.1]} 64... Ke3 {[%clk 0:00:24.7]} 65. Be8
{[%clk 0:00:18.7]} 65... Rd6 {[%clk 0:00:24.6]} 66. Bc6 {[%clk 0:00:12.9]} 66...
Rd2+ {[%clk 0:00:25.8]} 67. Kg1 {[%clk 0:00:14.2]} 67... Rd1+ {[%clk 0:00:26.5]}
68. Kg2 {[%clk 0:00:15.5]} 68... Rd2+ {[%clk 0:00:28]} 69. Kg1 {[%clk
0:00:16.8]} 69... Rd1+ {[%clk 0:00:23.5]} 70. Kg2 {[%clk 0:00:14]} 70... Rc1
{[%clk 0:00:23.2]} 71. Qd7 {[%clk 0:00:09.5]} 71... Rc2+ {[%clk 0:00:23.2]} 72.
Kg1 {[%clk 0:00:10.8]} 72... Rc1+ {[%clk 0:00:19.5]} 73. Kg2 {[%clk 0:00:11.7]}
73... Rc2+ {[%clk 0:00:20.6]} 74. Kg1 {[%clk 0:00:12.8]} 1/2-1/2